Cogmind - Beta 11.1 @@@ ROGUE MODE // 2022.12.08 @ 17:16:37 Player: JoshKwa Result: Destroyed by G-47 Trooper with Particle Gun Performance ------------- Evolutions (3) 1500 Regions Visited (6) 1200 Robots Destroyed (27) 135 Value Destroyed (795) 795 Prototype IDs (5) 100 Alien Tech Used (0) 0 Bonus (0) 0 TOTAL SCORE: 3730 Bonus ------- None Cogmind --------- Core Integrity 0/700 Matter 249/300 Energy 99/100 System Corruption 1% Temperature Cool (9) Movement Core (100) Ox1 Location -7/Lower Caves Parts ------- > --- POWER (2) -------- (None) > --- PROPULSION (4) --- (None) > --- UTILITY (5) ------ Improved Signal Interpreter Advanced Targeting Computer Advanced Targeting Computer Force Booster System Shield > --- WEAPON (2) ------- (None) > --- INVENTORY (5) ---- (None) Peak State ------------ > --- POWER ------------ Deuterium Engine Deuterium Engine > --- PROPULSION ------- Aluminum Leg Carbon-fiber Leg Armored Huge Wheel > --- UTILITY ---------- Improved Heat Sink Improved Heat Sink Improved Sensor Array Improved Signal Interpreter Advanced Targeting Computer > --- WEAPON ----------- Gauss Rifle Shock Bomb Launcher > --- INVENTORY -------- Flight Unit Advanced Targeting Computer System Shield [Rating: 40] Favorites ----------- Power Deuterium Engine Engine Deuterium Engine Power Core Light Nuclear Core Propulsion Flight Unit Treads Light Treads Leg Aluminum Leg Wheel Compact Wheel Hover Unit Gravmag System Flight Unit Flight Unit Utility Improved Signal Interpreter Device Improved Sensor Array Processor Improved Signal Interpreter Hackware System Shield Protection Light Armor Plating Weapon Shock Bomb Launcher Energy Gun Particle Gun Energy Cannon Improved EM Pulse Cannon Ballistic Gun Light Assault Rifle Launcher Shock Bomb Launcher Build | -11 -10 -10 -9 -8 -7 -7 ------- Run | Scr Mat Min Mat Mat Fac Low Slots Evolved 6 | . . . 2 2 2 . Power 1 | . . . . 1 . . Propulsion 2 | . . . . . 2 . Utility 3 | . . . 2 1 . . Weapon . | . . . . . . . Parts Attached 83 | 5 5 7 11 30 20 5 Power 13 | 1 1 . 2 6 3 . Engine 11 | 1 1 . 2 5 2 . Core 2 | . . . . 1 1 . Reactor . | . . . . . . . Propulsion 27 | 2 1 2 2 8 8 4 Treads 5 | . . 2 . 2 . 1 Leg 4 | . . . . 2 2 . Wheel 6 | 2 1 . . . 2 1 Hover 1 | . . . . . . 1 Flight 11 | . . . 2 4 4 1 Utility 24 | . 2 3 4 10 5 . Device 14 | . 1 2 3 5 3 . Storage . | . . . . . . . Processor 6 | . 1 . 1 3 1 . Hackware 1 | . . . . . 1 . Protection 3 | . . 1 . 2 . . Artifact . | . . . . . . . Weapon 19 | 2 1 2 3 6 4 1 Energy Gun 7 | 1 . 1 2 2 1 . Energy Cannon 1 | . . . . . . 1 Ballistic Gun 6 | 1 . 1 . 3 1 . Ballistic Cannon . | . . . . . . . Launcher 5 | . 1 . 1 1 2 . Special Weapon . | . . . . . . . Impact Weapon . | . . . . . . . Slashing Weapon . | . . . . . . . Piercing Weapon . | . . . . . . . Special Melee Weapon . | . . . . . . . Unidentified Prototypes 4 | . . 2 2 . . . Parts Lost 43 | . . 9 7 4 13 10 Power 6 | . . 1 1 . 3 1 Propulsion 13 | . . 2 . 1 4 6 Utility 10 | . . 3 3 2 2 . Weapon 14 | . . 3 3 1 4 3 Highest Loss Streak 6 | . . 5 5 2 6 5 To Critical Strikes . | . . . . . . . Average Slot Usage (%) 75 | . 80 55 28 90 77 60 Engine 11 | . 14 3 2 16 10 3 Treads 2 | . . 6 . 4 . . Leg 3 | . . . . 5 5 . Wheel 4 | . 28 13 . . 4 . Flight 6 | . . . 7 8 6 7 Device 13 | . 5 9 4 20 11 7 Processor 14 | . 3 3 2 14 21 23 Hackware 1 | . . . . . 4 7 Protection 1 | . . 1 . 3 . . Energy Gun 5 | . 14 7 10 5 1 . Ballistic Gun 5 | . 6 5 . 8 6 . Launcher 4 | . 7 3 1 2 2 8 Naked Turns 24 | . . 18 6 . . . Heaviest Build 34 | 5 8 15 11 31 34 27 Greatest Support 44 | 32 32 40 10 43 44 28 Greatest Overweight (x) 10 | . . 4 1 1 10 4 Average Overweight (x) . | . . . . . . 1 Largest Inventory Capacity 5 | 5 5 5 5 5 5 5 Average Capacity 5 | 5 5 5 5 5 5 5 Most Carried 5 | 4 5 5 4 5 5 2 Average Carried 2 | 2 4 1 . 3 2 . Final Capacity 5 | 5 5 5 5 5 5 5 Final Carried 4 | 4 4 . . 4 . . Class Distribution -------------------- 44% | Mutant 38% | Scavenger-Mutant 12% | Scavenger-Skirmisher Dominant Class ---------------- Mutant | -10/Materials Mutant | -10/Mines Mutant | -9/Materials Scavenger-Mutant | -8/Materials Scavenger-Mutant | -7/Factory Mutant | -7/Lower Caves Resources | -11 -10 -10 -9 -8 -7 -7 ----------- Run | Scr Mat Min Mat Mat Fac Low Matter Collected 1252 | 130 53 19 278 316 231 225 Remotely . | . . . . . . . Salvage Created 870 | . 115 . 96 325 334 . Parts 56 | . 10 . 8 21 17 . Haulers Intercepted 1 | . . . 1 . . . Recyclers Shooed 1 | . . . . 1 . . Parts Field Recycled . | . . . . . . . Retrieved Matter . | . . . . . . . Parts Self-Destructed . | . . . . . . . Prevented 2 | . . . . . . 2 Kills | -11 -10 -10 -9 -8 -7 -7 ------- Run | Scr Mat Min Mat Mat Fac Low Combat Hostiles Destroyed 23 | . 4 . 4 8 7 . Guns 18 | . 3 . 2 8 5 . AOE 5 | . 1 . 2 . 2 . Classes Destroyed 8 | . 3 . 2 2 1 . Worker 2 | . 1 . . . 1 . Hauler 1 | . . . 1 . . . Watcher 1 | . . . . 1 . . Swarmer 10 | . 3 . 2 2 3 . Grunt 7 | . 1 . 1 3 2 . Brawler 1 | . . . . . 1 . Sentry 4 | . . . 1 2 1 . Hunter 1 | . . . . 1 . . Best Kill Streak 3 | . 3 . 3 3 3 . Combat Bots Only 3 | . 3 . 3 3 3 . Max Kills in Single Turn 1 | . 1 . 1 1 1 . Gunslinging . | . . . . . . . Exploded 1 | . 1 . 1 . 1 . Melee . | . . . . . . . Uniques/NPCs Destroyed . | . . . . . . . Combat | -11 -10 -10 -9 -8 -7 -7 -------- Run | Scr Mat Min Mat Mat Fac Low Damage Taken 5287 | . 90 990 697 943 1849 718 Core 1415 | . 21 228 268 194 383 321 Absorbed by Shields . | . . . . . . . Core Remaining (%) 49 | 100 . . 33 64 . . Volleys Fired 132 | . 13 1 26 41 47 4 Largest 2 | . 2 2 2 2 2 2 Hottest 128 | . 70 70 95 128 103 72 Shots Fired 201 | . 16 2 32 76 70 5 Gun 172 | . 13 1 26 71 61 . Cannon 2 | . . . . . . 2 Launcher 27 | . 3 1 6 5 9 3 Special . | . . . . . . . Kinetic 86 | . . . . 41 45 . Thermal 77 | . 13 1 17 30 16 . Explosive 10 | . 3 1 6 . . . Electromagnetic 28 | . . . 9 5 9 5 Robot Hit Streak 11 | . 3 3 11 6 10 2 Robot Miss Streak 16 | . 2 . 16 6 3 1 Penetration Max . | . . . . . . . Secondary Targets 2 | . . . . 2 . . Max Gunslinging Chain 1 | . . . . 1 . . Shots Hit Robots 102 | . 9 2 20 45 24 2 Core Hits 61 | . 5 2 16 19 16 3 Critical Kills . | . . . . . . . Critical Parts Destroyed . | . . . . . . . Critical Strikes 2 | . . . . 1 . 1 Burn 1 | . . . . 1 . . Corrupt 1 | . . . . . . 1 Melee Attacks . | . . . . . . . Impact . | . . . . . . . Slashing . | . . . . . . . Piercing . | . . . . . . . Sneak Attacks . | . . . . . . . Combat Hostiles . | . . . . . . . Follow-up Attacks . | . . . . . . . Damage Inflicted 2129 | . 123 53 393 799 617 144 Guns 1424 | . 91 11 224 706 392 . Cannons 23 | . . . . . . 23 Explosions 665 | . 30 41 164 93 216 121 Melee . | . . . . . . . Ramming 17 | . 2 1 5 . 9 . Kinetic 814 | . . . . 444 370 . Thermal 642 | . 91 11 184 262 22 72 Explosive 235 | . 30 41 164 . . . Electromagnetic 421 | . . . 40 93 216 72 Impact . | . . . . . . . Slashing . | . . . . . . . Piercing . | . . . . . . . Highest Corruption 1 | . . . . 1 1 1 Average Corruption 1 | . . . . 1 1 1 Corruption Purged . | . . . . . . . Corruption Blocked . | . . . . . . . Effects 9 | . . . . 7 . 2 Message Errors 2 | . . . . 2 . . Matter Fused 3 | . . . . 2 . 1 Heat Flow Errors 1 | . . . . . . 1 Energy Discharges 2 | . . . . 2 . . Data Loss (minor) 1 | . . . . 1 . . Overload Shots . | . . . . . . . Overflow Damage 11 | . . . . 11 . . Projectiles . | . . . . . . . Explosions 11 | . . . . 11 . . Melee . | . . . . . . . Knockbacks . | . . . . . . . Impact . | . . . . . . . Kinetic . | . . . . . . . Secondary . | . . . . . . . Self-Inflicted Damage 131 | . 20 . 43 3 65 . Shots 9 | . 2 . 3 1 3 . Rammed 5 | . 2 1 1 . 1 . Targets Rammed 5 | . 2 1 1 . 1 . Kicked . | . . . . . . . Crushed . | . . . . . . . Highest Temperature 408 | . 18 6 102 408 189 147 Average Temperature 92 | . 9 4 39 127 73 62 Received Heat Transfer 1263 | . . . 174 360 528 201 Effects 4 | . . . . 4 . . Shutdowns 1 | . . . . 1 . . Interference 1 | . . . . 1 . . Short Circuit 1 | . . . . 1 . . Damage (minor) 1 | . . . . 1 . . Siege Activations . | . . . . . . . Robots Corrupted . | . . . . . . . Combat Hostiles . | . . . . . . . Parts Fried . | . . . . . . . Impact Corruptions . | . . . . . . . Robots Melted . | . . . . . . . Combat Hostiles . | . . . . . . . Parts Melted 3 | . 1 . 1 1 . . Heat Transferred 1221 | . 200 25 230 666 50 50 Parts Sabotaged . | . . . . . . . Parts Stolen . | . . . . . . . Parts Stripped . | . . . . . . . Power Chain Reactions 1 | . . . . . . 1 Missiles Intercepted . | . . . . . . . Alert | -11 -10 -10 -9 -8 -7 -7 ------- Run | Scr Mat Min Mat Mat Fac Low Peak Influence 276 | . 257 118 276 157 146 . Initial 100 | . . 100 . 94 16 . Average 78 | . 96 55 155 68 77 . Maximum Alert Level 1 | . 1 . 1 . . . Low Security (%) 92 | 100 84 100 44 100 100 . Level 1 7 | . 15 . 55 . . . Level 2 . | . . . . . . . Level 3 . | . . . . . . . Level 4 . | . . . . . . . Level 5 . | . . . . . . . High Security . | . . . . . . . Max Security . | . . . . . . . Squads Dispatched 11 | . 2 . 2 2 5 . Investigation 3 | . . . . 2 1 . Extermination 1 | . . . . . 1 . Reinforcement 4 | . 2 . 2 . . . Assault . | . . . . . . . Garrison 3 | . . . . . 3 . Intercept . | . . . . . . . Searches Triggered . | . . . . . . . Construction Impeded . | . . . . . . . Haulers Reinforced . | . . . . . . . Active Scanning Responses . | . . . . . . . Cargo Convoy Interrupts . | . . . . . . . Stealth | -11 -10 -10 -9 -8 -7 -7 --------- Run | Scr Mat Min Mat Mat Fac Low Distress Signals 5 | . 2 . 1 2 . . Communications Jammed . | . . . . . . . Distress Signals . | . . . . . . . Times Spotted 78 | . 11 11 21 13 14 8 Peak Tracking Total 12 | . 5 8 12 4 6 3 Tactical Retreats 10 | . 1 . 3 . 2 4 Traps | -11 -10 -10 -9 -8 -7 -7 ------- Run | Scr Mat Min Mat Mat Fac Low Traps Triggered 2 | . . . . 1 1 . Indirectly . | . . . . . . . Trap Hack Attempts . | . . . . . . . Triggered . | . . . . . . . Disarmed . | . . . . . . . Reprogrammed . | . . . . . . . Reused . | . . . . . . . Traps Extracted . | . . . . . . . Installed . | . . . . . . . Triggered 1 | . . . . . . 1 Machines | -11 -10 -10 -9 -8 -7 -7 ---------- Run | Scr Mat Min Mat Mat Fac Low Machines Disabled 2 | . 1 . . 1 . . Max in Single Turn 1 | . 1 . . 1 . . Machines Sabotaged . | . . . . . . . Garrisons Compromised . | . . . . . . . Overloaded Fab Kills . | . . . . . . . Hacking | -11 -10 -10 -9 -8 -7 -7 --------- Run | Scr Mat Min Mat Mat Fac Low Machines Accessed 7 | . 2 . . 4 1 . Terminals 5 | . 1 . . 4 . . Fabricators . | . . . . . . . Repair Stations . | . . . . . . . Recycling Units 1 | . 1 . . . . . Scanalyzers . | . . . . . . . Garrison Access 1 | . . . . . 1 . Total Hacks 22 | . 4 . . 16 2 . Successful 8 | . 1 . . 7 . . Failed 14 | . 3 . . 9 2 . Catastrophic 5 | . 2 . . 2 1 . Database Lockouts . | . . . . . . . Manual . | . . . . . . . Terminals 19 | . 3 . . 16 . . Fabricators . | . . . . . . . Repair Stations . | . . . . . . . Recycling Units 1 | . 1 . . . . . Scanalyzers . | . . . . . . . Garrison Access 2 | . . . . . 2 . Terminal Hacks 7 | . . . . 7 . . Record 2 | . . . . 2 . . Prototype ID Bank 1 | . . . . 1 . . Unreport Threat 1 | . . . . 1 . . Zone Layout 3 | . . . . 3 . . Fabricator Hacks . | . . . . . . . Repair Station Hacks . | . . . . . . . Recycling Unit Hacks 1 | . 1 . . . . . Report Inventory 1 | . 1 . . . . . Scanalyzer . | . . . . . . . Garrison Access Hacks . | . . . . . . . Unauthorized Hacks . | . . . . . . . Terminals . | . . . . . . . Fabricators . | . . . . . . . Repair Stations . | . . . . . . . Recycling Units . | . . . . . . . Scanalyzers . | . . . . . . . Garrison Access . | . . . . . . . Data Cores Recovered . | . . . . . . . Used . | . . . . . . . Hacking Detections 7 | . 2 . . 4 1 . Full Trace Events 2 | . . . . 1 1 . Feedback Events 1 | . . . . 1 . . Corruption 1 | . . . . 1 . . Feedback Blocked . | . . . . . . . Robot Schematics Acquired . | . . . . . . . Robots Built . | . . . . . . . Authchips . | . . . . . . . Time . | . . . . . . . Total Robot Build Rating . | . . . . . . . Part Schematics Acquired . | . . . . . . . Parts Built . | . . . . . . . Authchips . | . . . . . . . Time . | . . . . . . . Total Part Build Rating . | . . . . . . . Parts Repaired . | . . . . . . . Time . | . . . . . . . Parts Recycled . | . . . . . . . Recycled Matter . | . . . . . . . Retrieved Matter . | . . . . . . . Retrieved Components . | . . . . . . . Parts Scanalyzed . | . . . . . . . Part Schematics Acquired . | . . . . . . . Parts Damaged . | . . . . . . . Bothacking | -11 -10 -10 -9 -8 -7 -7 ------------ Run | Scr Mat Min Mat Mat Fac Low Used RIF Installer . | . . . . . . . Robots Hacked . | . . . . . . . Non-combat . | . . . . . . . Combat . | . . . . . . . Robot Hacks Applied . | . . . . . . . Relay Couplers Released . | . . . . . . . Fabnet Peak Effective % . | . . . . . . . Robots Rewired . | . . . . . . . Allies Hacked . | . . . . . . . Hacks Repelled . | . . . . . . . Allies | -11 -10 -10 -9 -8 -7 -7 -------- Run | Scr Mat Min Mat Mat Fac Low Total Allies . | . . . . . . . Largest Group . | . . . . . . . Highest-Rated Group . | . . . . . . . Highest-Rated Ally . | . . . . . . . Total Orders . | . . . . . . . Ally Attacks . | . . . . . . . Total Damage . | . . . . . . . Kills . | . . . . . . . Allies Corrupted . | . . . . . . . Allies Melted . | . . . . . . . Intel | -11 -10 -10 -9 -8 -7 -7 ------- Run | Scr Mat Min Mat Mat Fac Low Robot Analysis Total . | . . . . . . . Derelict Logs Recovered 1 | . . . . . . 1 Drone Launches 16 | . . 16 . . . . Drone Recoveries . | . . . . . . . Exploration | -11 -10 -10 -9 -8 -7 -7 ------------- Run | Scr Mat Min Mat Mat Fac Low Turns Passed 2559 | 63 233 150 209 1138 356 410 Spaces Moved 1758 | 51 189 125 263 668 191 271 Core 276 | 3 . 43 161 . 1 68 Treads 117 | . . 22 . 88 . 7 Legs 196 | . . . . 156 40 . Wheels 376 | 48 189 60 . . 50 29 Hover 64 | . . . . . . 64 Flight 729 | . . . 102 424 100 103 Fastest Speed 27 | 50 90 50 37 37 27 60 Average Speed 106 | 97 99 104 47 119 103 144 Slowest Speed 550 | 100 100 250 107 240 550 355 Overloaded Moves . | . . . . . . . Propulsion Burnouts . | . . . . . . . Robots Hopped 2 | . . . 1 1 . . Cave-ins Triggered . | . . . . . . . Exploration Rate (%) 33 | 4 40 75 31 37 6 43 Regions Visited 6 Branch Regions 2 Pre-discovered Areas . | . . . . . . . Known Exits Taken 2 | . . . . 1 1 . Unknown Exits Taken 4 | 1 1 1 1 . . . Scrap Searched 2 | . . 1 . . . 1 Spaces Dug . | . . . . . . . Terrain Destroyed 63 | . 23 6 32 . . 2 Melee . | . . . . . . . Projectile . | . . . . . . . AOE 63 | . 23 6 32 . . 2 Terrain Rammed . | . . . . . . . Walls Destroyed . | . . . . . . . Machines Disabled . | . . . . . . . Actions | -11 -10 -10 -9 -8 -7 -7 --------- Run | Scr Mat Min Mat Mat Fac Low Total 2251 | 64 216 146 313 941 286 285 Wait 158 | . 5 . 1 152 . . Move 1748 | 50 188 124 260 665 190 271 Hop 2 | . . . 1 1 . . Pick Up 77 | 9 1 3 12 31 16 5 Fast Attach 2 | . 2 . . . . . Attach 65 | 5 . 7 11 19 18 5 Detach 16 | . . 5 . 7 4 . Swap 16 | . 3 . . 11 2 . Drop 30 | . 2 5 1 14 8 . Fire 132 | . 13 1 26 41 47 4 Melee . | . . . . . . . Ram 5 | . 2 1 1 . 1 . Kick . | . . . . . . . Crush . | . . . . . . . Escape Stasis . | . . . . . . . Rewire . | . . . . . . . Trap . | . . . . . . . Miscellaneous . | . . . . . . . Route ------- -11/Scrapyard -10/Materials -10/Mines -9/Materials -8/Materials -7/Factory -7/Lower Caves History --------- Turn | Location | Event 9 | -11/Scrapyard | Discovered new exit (range 16) 64 | -11/Scrapyard | Entered Materials 120 | -10/Materials | Discovered new exit (range 12) 297 | -10/Materials | Entered Mines 308 | -10/Mines | Assembled infested the area 310 | -10/Mines | Build established: Mutant 315 | -10/Mines | Met a Derelict bent on vengeance 357 | -10/Mines | Found a damaged Exp. Sensor Array with a note attached 359 | -10/Mines | Found Prototype Device 360 | -10/Mines | Identified Exp. Sensor Array 365 | -10/Mines | Lost 4 parts (1p2u1w) 369 | -10/Mines | Core integrity fell below 50% 389 | -10/Mines | Found the Drone Emporium 393 | -10/Mines | Found Prototype Device 394 | -10/Mines | Identified Decoy Drone Bay 400 | -10/Mines | Core integrity fell below 20% 435 | -10/Mines | Lost 5 parts (2n1u2w) 443 | -10/Mines | Discovered new exit (range 8) 447 | -10/Mines | Entered Materials 447 | -9/Materials | Evolved 2 slots: Utility x2 625 | -9/Materials | Discovered new exit (range 16) 642 | -9/Materials | Core integrity fell below 50% 656 | -9/Materials | Entered another Materials area 656 | -8/Materials | Evolved 2 slots: Power x1, Utility x1 683 | -8/Materials | Lost 5 parts (1p3u1w) 1012 | -8/Materials | Build established: Scavenger-Mutant 1411 | -8/Materials | Build established: Scavenger-Skirmisher 1708 | -8/Materials | Discovered new exit (range 13) 1758 | -8/Materials | Build established: Scavenger-Mutant 1792 | -8/Materials | Identified exit to Factory 1794 | -8/Materials | Entered Factory 1794 | -7/Factory | Evolved 2 slots: Propulsion x2 1858 | -7/Factory | Garrison activated, responded to threat 1922 | -7/Factory | Lost 4 parts (2p1u1w) 2083 | -7/Factory | Core integrity fell below 50% 2109 | -7/Factory | Lost 6 parts (1p2n1u2w) 2120 | -7/Factory | Discovered new exit (range 9) 2148 | -7/Factory | Identified exit to Lower Caves 2150 | -7/Factory | Entered Lower Caves 2335 | -7/Lower Caves | Spotted B-75 Beast 2383 | -7/Lower Caves | Lost 5 parts (1p3n1w) 2421 | -7/Lower Caves | Learned location of 1 exit from Factory 2423 | -7/Lower Caves | Build established: Mutant 2458 | -7/Lower Caves | Core integrity fell below 20% 2560 | -7/Lower Caves | Destroyed by G-47 Trooper with Particle Gun Last Messages --------------- 02447_ Acquired 37 matter. 02448_ Shock Bomb Launcher destroyed. 02448_ Critical hit (Burn: +37). 02450_ Acquired Med. Treads. 02460_ Searching scrap... 02460_ Found Gravmag System. 02460_ Found Imp. EM Pulse Cannon. 02460_ Found 17 Matter. 02461_ Acquired 17 matter. 02464_ Acquired Gravmag System. 02466_ Acquired Imp. EM Pulse Cannon. 02467_ Med. Treads destroyed. 02493_ System corrupted: Heat flow error (+178). 02495_ Acquired 89 matter. 02504_ Acquired 74 matter. 02505_ Acquired Com. Wheel. 02525_ Chain reaction triggered in Imp. Deuterium Engine. 02528_ Gravmag System destroyed. 02531_ Imp. EM Pulse Cannon destroyed. 02541_ Com. Wheel destroyed. Map ----- +----------------------------------------------------+ | | | ?????????????????????????????????????????????????? | | ?????????????????????????????????????????????????? | | ?????????????????????????????????????????????????? | | ?????????????????????????????????????????????????? | | ?????????????????????????????????????????????????? | | ?????????????????????????????????????????????????? | | ?????????????????????????????????????????????????? | | ?????????????????????????????????????????????????? | | ?????????????????????????????????????????????????? | | ?????????????????????????????????????????????????? | | ?????????????????????????????????????????????????? | | ??????????????????##?????????????????????????????? | | ??????????????????? ?????????????????????????????? | | ??????????????????# ?????????????????????????????? | | ??????????????????# ?????????????????????????????? | | ??????????????????? ##???????????????????????????? | | ????????????????#### #???????????????????????????? | | ????????????????# # ##??????????????????????????? | | ????????????????# ##?????????????????????????? | | ????????????????# ##????????????????????????? | | ????????????????# #????????????????????????? | | ???????????????## #????????????????????????? | | ??????????###### ####?????????????????????? | | ?????????## g #?????????????????????? | | ??#####?## ## g @##?????????????????????? | | ### ### ### #??????????????????????? | | ##?## #??????????????????????? | | #???## l##??????????????????????? | | #####?## #???????????????????????? | | ##### #?## #???????????????????????? | | "" #??# ### #???????????????????????? | | ## #??# #???????????????????????? | | ###### #??## ##???????????????????????? | | # ##????# #???## ###????????????????????????? | | ###?????# #????######??????????????????????????? | | ?????#### ##???????????????##???????????????????? | | ?????# #??????????????## #???????????????????? | | ?????# #??????????????# #???????????????????? | | ?????# ######????????## #???????????????????? | | #????## ##???????# #???????????????????? | | ???## #??????## #???????????????????? | | ??## #####?????## #???????????????????? | | ### ##?????????# ##???????????????????? | | $ ##?########## #????????????????????? | | ##??# # #????????????????????? | | ### ###?# # #????????????????????? | | ??# ###" " "" # ##???????????????????? | | ??# ##" """ ## ####????????????????? | | ??# ### "" "" ## #????????????????? | +----------------------------------------------------+ Best States ------------- Heat Dissipation 62 Energy Generation 27 Energy Capacity 480 Matter Stores 293 Matter Capacity 300 Sight Range 16 Robot Scan Range 15 Terrain Scan Range 14 Terrain Scan Density 110 Additional Mass Support 6 Armor Coverage 150 Evasion (%) 70 Targeting Accuracy 16 Recoil Reduction 2 Kinecelleration 30 Force Boost 20 Defensive Hacking 10 Item Schematics ----------------- None Robot Schematics ------------------ None Fabricated ------------ Nothing Alien Tech Used ----------------- None Achievements -------------- None Challenges ------------ None Game ------ Seed SpikedTrackerTendrils Manual? 0 Play Time 00:30:37 Cumulative 14.5 hours Start 2022.12.08 @ 16:48:29 End 2022.12.08 @ 17:16:37 Sessions 1 Manual Loads 0 Difficulty Rogue Special Mode None Game No. 45 Rogue 45 Adventurer 0 Explorer 0 Win Type - Total 0 Types 0/0/0/0/0/0/0/0/0 Lore% 13 Gallery% 22 Achievement% 19 Wizard Run 0 Options --------- ASCII 0 Keyboard 0 Movement Numpad Keybinds 0 Fullscreen 1 Font 18/SmallcapsGlow Map View 76x50 Tactical HUD 1 Map Filters NONE Filters NONE Steam 1 RUN: 7df70cb1-bdb6-426b-a8b4-0d4063748c62